Workbook

Sheet Begroting
C1: =Jaartabel!$G6 -> 1 | D1: =Jaartabel!$G7 -> 1 | E1: =Jaartabel!$G8 -> 1 | H1: =Jaartabel!$G9 -> 1 | I1: =Jaartabel!$G10 -> 1 | J1: =Jaartabel!$G11 -> 1 | K1: =Jaartabel!$G12 -> 1 | L1: =Jaartabel!$G13 -> 1 | M1: =Jaartabel!$G14 -> 1 | N1: =Jaartabel!$G15 -> 1 | O1: =Jaartabel!$G16 -> 1 | P1: =Jaartabel!$G17 -> 1 | Q1: =Jaartabel!$G18 -> 1 | R1: =Jaartabel!$G19 -> 1 | S1: =Jaartabel!$G20 -> 1 | T1: =Jaartabel!$G21 -> 1 | U1: =Jaartabel!$G22 -> 1 | V1: =Jaartabel!$G23 -> 1 | W1: =Jaartabel!$G24 -> 1 | X1: =Jaartabel!$G25 -> 1 | Y1: =Jaartabel!$G26 -> 0 | Z1: =Jaartabel!$G27 -> 0 | AA1: =Jaartabel!$G28 -> 0 | AB1: =Jaartabel!$G29 -> 0 | AC1: =Jaartabel!$G30 -> 0 | AD1: =Jaartabel!$G31 -> 0 | AE1: =Jaartabel!$G32 -> 0 | AF1: =Jaartabel!$G33 -> 0 | AG1: =Jaartabel!$G34 -> 0 | AH1: =Jaartabel!$G35 -> 0 | AI1: =Jaartabel!$G36 -> 0 | AJ1: =Jaartabel!$G37 -> 0 | AK1: =Jaartabel!$G38 -> 0 | AL1: =Jaartabel!$G39 -> 0
C2: =Jaartabel!$H6 -> 1 | D2: =Jaartabel!$H7 -> 1 | E2: =Jaartabel!$H8 -> 1 | H2: =Jaartabel!$H9 -> 1 | I2: =Jaartabel!$H10 -> 1 | J2: =Jaartabel!$H11 -> 1 | K2: =Jaartabel!$H12 -> 1 | L2: =Jaartabel!$H13 -> 1 | M2: =Jaartabel!$H14 -> 1 | N2: =Jaartabel!$H15 -> 1 | O2: =Jaartabel!$H16 -> 1 | P2: =Jaartabel!$H17 -> 1 | Q2: =Jaartabel!$H18 -> 1 | R2: =Jaartabel!$H19 -> 1 | S2: =Jaartabel!$H20 -> 1 | T2: =Jaartabel!$H21 -> 1 | U2: =Jaartabel!$H22 -> 1 | V2: =Jaartabel!$H23 -> 1 | W2: =Jaartabel!$H24 -> 1 | X2: =Jaartabel!$H25 -> 1 | Y2: =Jaartabel!$H26 -> 0 | Z2: =Jaartabel!$H27 -> 0 | AA2: =Jaartabel!$H28 -> 0 | AB2: =Jaartabel!$H29 -> 0 | AC2: =Jaartabel!$H30 -> 0 | AD2: =Jaartabel!$H31 -> 0 | AE2: =Jaartabel!$H32 -> 0 | AF2: =Jaartabel!$H33 -> 0 | AG2: =Jaartabel!$H34 -> 0 | AH2: =Jaartabel!$H35 -> 0 | AI2: =Jaartabel!$H36 -> 0 | AJ2: =Jaartabel!$H37 -> 0 | AK2: =Jaartabel!$H38 -> 0 | AL2: =Jaartabel!$H39 -> 0
B6: SVn_18_1_2022
B7: Bereken de rente en aflossing van uw VvE lening | F7: Dit Excelmodel is een handreiking voor het inzichtelijk maken van gevraagde informatie met betrekking tot uw aanvraag. Het Excelmodel is een berekening van algemene aard en kwalificeert niet als enige vorm van advies of aanbeveling. SVn heeft het Excelmodel en de hierin opgenomen formules zorgvuldig opgesteld, maar mogelijk kunnen het Excelmodel en/of de gehanteerde formules niet (meer) kloppen of voor u passend zijn.
B8: Hoofdsom lening | C8: 100000 | D8: =IF( OR( C8=0, C8="" ), "LET OP: vul hiernaast een getal in.", "" ) -> 
B9: Looptijd (in maanden) | C9: 240 | D9: =IF( OR( C9=0, C9="" ), "LET OP: kies hiernaast een looptijd.", "" ) -> 
B10: Aangeboden rente | C10: 0.04 | D10: =IF( OR( C10=0, C10="" ), "LET OP: vul hiernaast een percentage groter dan 0 in.", "" ) -> 
B11: Rente & aflossing per maand | C11: =-PMT(C10/12,C9,C8) -> 605.9803293
B12: Rente & aflossing per jaar | C12: =-PMT(C10/12,C9,C8)*12 -> 7271.763952
B14: Toelichting
B15: In kolom C, D en E vult u een inschatting van de opbrengsten en kosten die uw VvE verwacht. In kolom F is ruimte voor een eventuele toelichting.
B18: Vul de witte velden s.v.p. in en het tabblad 'Liquiditeitsprognose'.
B19: =IF(SUM(Liquiditeitsprognose!D17:G17)=0,"Let op: vergeet niet het tabblad 'Liquiditeitsprognose te vullen","") -> Let op: vergeet niet het tabblad 'Liquiditeitsprognose te vullen
B20: Naam VvE
B21: Aanvraagnummer (indien bekend)
B22: Geschatte ingangsdatum lening en (eventuele) verhoging servicekosten | E22: =IF( OR( D22=0, D22="" ), "LET OP: vul hiernaast een ingangsdatum.", "" ) -> LET OP: vul hiernaast een ingangsdatum.
B23: =CONCATENATE( "Inflatiepercentage toepassen op inkomsten en kosten (vanaf ", D26+1, ").") -> Inflatiepercentage toepassen op inkomsten en kosten (vanaf 2024).
B24: Exploitatieresultaat toevoegen aan reserve
B26: Omschrijving | C26: =YEAR(TODAY()) -> 2022 | D26: =C26+1 -> 2023 | E26: =D26+1 -> 2024 | F26: Toelichting | H26: =E26+1 -> 2025 | I26: =H26+1 -> 2026 | J26: 2027 | K26: 2028 | L26: 2029 | M26: 2030 | N26: 2031 | O26: 2032 | P26: 2033 | Q26: 2034 | R26: 2035 | S26: 2036 | T26: 2037 | U26: 2038 | V26: 2039 | W26: 2040 | X26: 2041 | Y26: 2042 | Z26: 2043 | AA26: 2044 | AB26: 2045 | AC26: 2046 | AD26: 2047 | AE26: 2048 | AF26: 2049 | AG26: 2050 | AH26: 2051 | AI26: 2052 | AJ26: 2053 | AK26: 2054 | AL26: 2055
B27: Exploitatiebijdragen eigenaars tot ingang lening | C27: 0 | D27: 0 | E27: =D27*(1+$D$23) -> 0
B28: Exploitatiebijdragen eigenaars na ingang lening | C28: 0 | D28: 0 | E28: =D28*(1+$D$23) -> 0 | H28: =SUM(E27:E28)*(1+$D$23) -> 0 | I28: =H28*(1+$D$23) -> 0 | J28: =I28*(1+$D$23) -> 0 | K28: 0 | L28: 0 | M28: 0 | N28: 0 | O28: 0 | P28: 0 | Q28: =P28*(1+$D$23)*Q$1 -> 0 | R28: 0 | S28: 0 | T28: =S28*(1+$D$23)*T$1 -> 0 | U28: 0 | V28: 0 | W28: 0 | X28: 0 | Y28: 0 | Z28: 0 | AA28: 0 | AB28: 0 | AC28: 0 | AD28: 0 | AE28: 0 | AF28: 0 | AG28: 0 | AH28: 0 | AI28: 0 | AJ28: 0 | AK28: 0 | AL28: 0
B29: Bedrag aan ontvangen rente op de spaarrekening | C29: 0 | D29: 0 | E29: =D29*(1+$D$23) -> 0 | H29: =E29*(1+$D$23) -> 0 | I29: 0 | J29: 0 | K29: 0 | L29: 0 | M29: 0 | N29: 0 | O29: 0 | P29: 0 | Q29: =P29*(1+$D$23)*Q$1 -> 0 | R29: 0 | S29: 0 | T29: =S29*(1+$D$23)*T$1 -> 0 | U29: 0 | V29: 0 | W29: 0 | X29: 0 | Y29: 0 | Z29: 0 | AA29: 0 | AB29: 0 | AC29: 0 | AD29: 0 | AE29: 0 | AF29: 0 | AG29: 0 | AH29: 0 | AI29: 0 | AJ29: 0 | AK29: 0 | AL29: 0
B30: Vergoedingen en tegemoetkomingen | C30: 0 | D30: 0 | E30: =D30*(1+$D$23) -> 0 | H30: =E30*(1+$D$23) -> 0 | I30: 0 | J30: 0 | K30: 0 | L30: 0 | M30: 0 | N30: 0 | O30: 0 | P30: 0 | Q30: =P30*(1+$D$23)*Q$1 -> 0 | R30: 0 | S30: 0 | T30: =S30*(1+$D$23)*T$1 -> 0 | U30: 0 | V30: 0 | W30: 0 | X30: 0 | Y30: 0 | Z30: 0 | AA30: 0 | AB30: 0 | AC30: 0 | AD30: 0 | AE30: 0 | AF30: 0 | AG30: 0 | AH30: 0 | AI30: 0 | AJ30: 0 | AK30: 0 | AL30: 0
B31: Overige inkomsten: | C31: 0 | D31: 0 | E31: =D31*(1+$D$23) -> 0 | H31: =E31*(1+$D$23) -> 0 | I31: =H31*(1+$D$23) -> 0 | J31: =I31*(1+$D$23) -> 0 | K31: =J31*(1+$D$23) -> 0 | L31: =K31*(1+$D$23) -> 0 | M31: =L31*(1+$D$23) -> 0 | N31: =M31*(1+$D$23) -> 0 | O31: =N31*(1+$D$23) -> 0 | P31: =O31*(1+$D$23) -> 0 | Q31: =P31*(1+$D$23)*Q$1 -> 0 | R31: 0 | S31: 0 | T31: =S31*(1+$D$23)*T$1 -> 0 | U31: 0 | V31: 0 | W31: 0 | X31: 0 | Y31: 0 | Z31: 0 | AA31: 0 | AB31: 0 | AC31: 0 | AD31: 0 | AE31: 0 | AF31: 0 | AG31: 0 | AH31: 0 | AI31: 0 | AJ31: 0 | AK31: 0 | AL31: 0
B32: Overige inkomsten (zonder indexering): | C32: 0 | D32: 0 | E32: =D32 -> 0 | F32: =IF(SUM(C32:E32)>0,"Toelichting verplicht","") ->  | H32: =E32 -> 0 | I32: =H32 -> 0 | J32: =I32 -> 0 | K32: 0 | L32: 0 | M32: 0 | N32: 0 | O32: 0 | P32: 0 | Q32: 0 | R32: 0 | S32: 0 | T32: 0 | U32: 0 | V32: 0 | W32: 0 | X32: 0 | Y32: 0 | Z32: 0 | AA32: 0 | AB32: 0 | AC32: 0 | AD32: 0 | AE32: 0 | AF32: 0 | AG32: 0 | AH32: 0 | AI32: 0 | AJ32: 0 | AK32: 0 | AL32: 0
B33: Totaal inkomsten | C33: =SUM(C27:C32) -> 0 | D33: =SUM(D27:D32) -> 0 | E33: =SUM(E27:E32) -> 0 | H33: =SUM(H27:H32) -> 0 | I33: =SUM(I27:I32) -> 0 | J33: 0 | K33: 0 | L33: 0 | M33: 0 | N33: 0 | O33: 0 | P33: 0 | Q33: 0 | R33: =SUM(R27:R32) -> 0 | S33: 0 | T33: 0 | U33: 0 | V33: 0 | W33: 0 | X33: 0 | Y33: 0 | Z33: 0 | AA33: 0 | AB33: 0 | AC33: 0 | AD33: 0 | AE33: 0 | AF33: 0 | AG33: 0 | AH33: 0 | AI33: =SUM(AI27:AI32) -> 0 | AJ33: 0 | AK33: =SUM(AK27:AK32) -> 0 | AL33: 0
B35: Verzekeringen (totaal) | C35: =SUM(C36:C40) -> 0 | D35: =SUM(D36:D40) -> 0 | E35: =SUM(E36:E40) -> 0 | H35: =SUM(H36:H40) -> 0 | I35: =SUM(I36:I40) -> 0 | J35: 0 | K35: 0 | L35: 0 | M35: 0 | N35: 0 | O35: 0 | P35: 0 | Q35: 0 | R35: =SUM(R36:R40) -> 0 | S35: 0 | T35: 0 | U35: 0 | V35: 0 | W35: 0 | X35: 0 | Y35: 0 | Z35: 0 | AA35: 0 | AB35: =SUM(AB36:AB40) -> 0 | AC35: 0 | AD35: 0 | AE35: 0 | AF35: 0 | AG35: 0 | AH35: 0 | AI35: =SUM(AI36:AI40) -> 0 | AJ35: =SUM(AJ36:AJ40) -> 0 | AK35: =SUM(AK36:AK40) -> 0 | AL35: 0
B36: VvE Polis | C36: 0 | D36: 0 | E36: =D36*(1+$D$23) -> 0 | H36: =E36*(1+$D$23) -> 0 | I36: =H36*(1+$D$23) -> 0 | J36: =I36*(1+$D$23) -> 0 | K36: 0 | L36: 0 | M36: 0 | N36: 0 | O36: 0 | P36: 0 | Q36: =P36*(1+$D$23)*Q$1 -> 0 | R36: 0 | S36: 0 | T36: 0 | U36: 0 | V36: 0 | W36: 0 | X36: 0 | Y36: 0 | Z36: 0 | AA36: 0 | AB36: 0 | AC36: 0 | AD36: 0 | AE36: 0 | AF36: 0 | AG36: 0 | AH36: 0 | AI36: 0 | AJ36: 0 | AK36: 0 | AL36: 0
C37: 0 | D37: 0 | E37: =D37*(1+$D$23) -> 0 | H37: =E37*(1+$D$23) -> 0 | I37: 0 | J37: 0 | K37: 0 | L37: 0 | M37: 0 | N37: 0 | O37: 0 | P37: 0 | Q37: =P37*(1+$D$23)*Q$1 -> 0 | R37: =Q37*(1+$D$23)*R$1 -> 0 | S37: 0 | T37: 0 | U37: 0 | V37: 0 | W37: 0 | X37: 0 | Y37: 0 | Z37: 0 | AA37: 0 | AB37: 0 | AC37: 0 | AD37: 0 | AE37: 0 | AF37: 0 | AG37: 0 | AH37: 0 | AI37: 0 | AJ37: 0 | AK37: 0 | AL37: 0
C38: 0 | D38: 0 | E38: =D38*(1+$D$23) -> 0 | H38: =E38*(1+$D$23) -> 0 | I38: 0 | J38: 0 | K38: 0 | L38: 0 | M38: 0 | N38: 0 | O38: 0 | P38: 0 | Q38: =P38*(1+$D$23)*Q$1 -> 0 | R38: =Q38*(1+$D$23)*R$1 -> 0 | S38: 0 | T38: 0 | U38: 0 | V38: 0 | W38: 0 | X38: 0 | Y38: 0 | Z38: 0 | AA38: 0 | AB38: 0 | AC38: 0 | AD38: 0 | AE38: 0 | AF38: 0 | AG38: 0 | AH38: 0 | AI38: 0 | AJ38: 0 | AK38: 0 | AL38: 0
C39: 0 | D39: 0 | E39: =D39*(1+$D$23) -> 0 | H39: =E39*(1+$D$23) -> 0 | I39: 0 | J39: 0 | K39: 0 | L39: 0 | M39: 0 | N39: 0 | O39: 0 | P39: 0 | Q39: =P39*(1+$D$23)*Q$1 -> 0 | R39: =Q39*(1+$D$23)*R$1 -> 0 | S39: 0 | T39: 0 | U39: 0 | V39: 0 | W39: 0 | X39: 0 | Y39: 0 | Z39: 0 | AA39: 0 | AB39: 0 | AC39: 0 | AD39: 0 | AE39: 0 | AF39: 0 | AG39: 0 | AH39: 0 | AI39: 0 | AJ39: 0 | AK39: 0 | AL39: 0
C40: 0 | D40: 0 | E40: =D40*(1+$D$23) -> 0 | H40: =E40*(1+$D$23) -> 0 | I40: 0 | J40: 0 | K40: 0 | L40: 0 | M40: 0 | N40: 0 | O40: 0 | P40: 0 | Q40: =P40*(1+$D$23)*Q$1 -> 0 | R40: =Q40*(1+$D$23)*R$1 -> 0 | S40: 0 | T40: 0 | U40: 0 | V40: 0 | W40: 0 | X40: 0 | Y40: 0 | Z40: 0 | AA40: 0 | AB40: 0 | AC40: 0 | AD40: 0 | AE40: 0 | AF40: 0 | AG40: 0 | AH40: 0 | AI40: 0 | AJ40: 0 | AK40: 0 | AL40: 0
B41: Huisvestingskosten (totaal) | C41: =SUM(C42:C44) -> 0 | D41: =SUM(D42:D44) -> 0 | E41: =SUM(E42:E44) -> 0 | H41: =SUM(H42:H44) -> 0 | I41: =SUM(I42:I44) -> 0 | J41: 0 | K41: 0 | L41: 0 | M41: 0 | N41: 0 | O41: 0 | P41: 0 | Q41: 0 | R41: =SUM(R42:R44) -> 0 | S41: 0 | T41: 0 | U41: 0 | V41: 0 | W41: 0 | X41: 0 | Y41: 0 | Z41: 0 | AA41: 0 | AB41: 0 | AC41: 0 | AD41: 0 | AE41: 0 | AF41: 0 | AG41: 0 | AH41: 0 | AI41: =SUM(AI42:AI44) -> 0 | AJ41: =SUM(AJ42:AJ44) -> 0 | AK41: =SUM(AK42:AK44) -> 0 | AL41: 0
B42: Nuts voorzieningen Electra | C42: 0 | D42: 0 | E42: =D42*(1+$D$23) -> 0 | H42: =E42*(1+$D$23) -> 0 | I42: =H42*(1+$D$23) -> 0 | J42: 0 | K42: 0 | L42: 0 | M42: 0 | N42: 0 | O42: 0 | P42: 0 | Q42: =P42*(1+$D$23)*Q$1 -> 0 | R42: =Q42*(1+$D$23)*R$1 -> 0 | S42: 0 | T42: 0 | U42: 0 | V42: 0 | W42: 0 | X42: 0 | Y42: 0 | Z42: 0 | AA42: 0 | AB42: 0 | AC42: 0 | AD42: 0 | AE42: 0 | AF42: 0 | AG42: 0 | AH42: 0 | AI42: 0 | AJ42: 0 | AK42: 0 | AL42: 0
B43: Verbruik water | C43: 0 | D43: 0 | E43: =D43*(1+$D$23) -> 0 | H43: =E43*(1+$D$23) -> 0 | I43: 0 | J43: 0 | K43: 0 | L43: 0 | M43: 0 | N43: 0 | O43: 0 | P43: 0 | Q43: =P43*(1+$D$23)*Q$1 -> 0 | R43: =Q43*(1+$D$23)*R$1 -> 0 | S43: 0 | T43: 0 | U43: 0 | V43: 0 | W43: 0 | X43: 0 | Y43: 0 | Z43: 0 | AA43: 0 | AB43: 0 | AC43: 0 | AD43: 0 | AE43: 0 | AF43: 0 | AG43: 0 | AH43: 0 | AI43: 0 | AJ43: 0 | AK43: 0 | AL43: 0
B44: Overige kosten: | C44: 0 | D44: 0 | E44: =D44*(1+$D$23) -> 0 | H44: =E44*(1+$D$23) -> 0 | I44: 0 | J44: 0 | K44: 0 | L44: 0 | M44: 0 | N44: 0 | O44: 0 | P44: 0 | Q44: =P44*(1+$D$23)*Q$1 -> 0 | R44: =Q44*(1+$D$23)*R$1 -> 0 | S44: 0 | T44: 0 | U44: 0 | V44: 0 | W44: 0 | X44: 0 | Y44: 0 | Z44: 0 | AA44: 0 | AB44: 0 | AC44: 0 | AD44: 0 | AE44: 0 | AF44: 0 | AG44: 0 | AH44: 0 | AI44: 0 | AJ44: 0 | AK44: 0 | AL44: 0
B45: Dotatie reservefonds (totaal) | C45: =SUM(C46:C48) -> 0 | D45: =SUM(D46:D48) -> 0 | E45: =SUM(E46:E48) -> 0 | H45: =SUM(H46:H48) -> 0 | I45: =SUM(I46:I48) -> 0 | J45: 0 | K45: 0 | L45: 0 | M45: 0 | N45: 0 | O45: 0 | P45: 0 | Q45: 0 | R45: =SUM(R46:R48) -> 0 | S45: 0 | T45: 0 | U45: 0 | V45: 0 | W45: 0 | X45: 0 | Y45: 0 | Z45: 0 | AA45: 0 | AB45: 0 | AC45: 0 | AD45: 0 | AE45: 0 | AF45: 0 | AG45: 0 | AH45: 0 | AI45: =SUM(AI46:AI48) -> 0 | AJ45: =SUM(AJ46:AJ48) -> 0 | AK45: =SUM(AK46:AK48) -> 0 | AL45: 0
B46: Woningen | C46: 0 | D46: 0 | E46: =D46*(1+$D$23) -> 0 | H46: =E46*(1+$D$23) -> 0 | I46: =H46*(1+$D$23) -> 0 | J46: 0 | K46: 0 | L46: 0 | M46: 0 | N46: 0 | O46: 0 | P46: 0 | Q46: =P46*(1+$D$23)*Q$1 -> 0 | R46: =Q46*(1+$D$23)*R$1 -> 0 | S46: 0 | T46: 0 | U46: 0 | V46: 0 | W46: 0 | X46: 0 | Y46: 0 | Z46: 0 | AA46: 0 | AB46: 0 | AC46: 0 | AD46: 0 | AE46: 0 | AF46: 0 | AG46: 0 | AH46: 0 | AI46: 0 | AJ46: 0 | AK46: 0 | AL46: 0
B47: Garages / overig | C47: 0 | D47: 0 | E47: =D47*(1+$D$23) -> 0 | H47: =E47*(1+$D$23) -> 0 | I47: 0 | J47: 0 | K47: 0 | L47: 0 | M47: 0 | N47: 0 | O47: 0 | P47: 0 | Q47: =P47*(1+$D$23)*Q$1 -> 0 | R47: =Q47*(1+$D$23)*R$1 -> 0 | S47: 0 | T47: 0 | U47: 0 | V47: 0 | W47: 0 | X47: 0 | Y47: 0 | Z47: 0 | AA47: 0 | AB47: 0 | AC47: 0 | AD47: 0 | AE47: 0 | AF47: 0 | AG47: 0 | AH47: 0 | AI47: 0 | AJ47: 0 | AK47: 0 | AL47: 0
B48: Overige dotaties: | C48: 0 | D48: 0 | E48: =D48*(1+$D$23) -> 0 | H48: =E48*(1+$D$23) -> 0 | I48: 0 | J48: 0 | K48: 0 | L48: 0 | M48: 0 | N48: 0 | O48: 0 | P48: 0 | Q48: =P48*(1+$D$23)*Q$1 -> 0 | R48: =Q48*(1+$D$23)*R$1 -> 0 | S48: 0 | T48: 0 | U48: 0 | V48: 0 | W48: 0 | X48: 0 | Y48: 0 | Z48: 0 | AA48: 0 | AB48: 0 | AC48: 0 | AD48: 0 | AE48: 0 | AF48: 0 | AG48: 0 | AH48: 0 | AI48: 0 | AJ48: 0 | AK48: 0 | AL48: 0
B49: Jaarlijkse onderhoudskosten (totaal) | C49: =SUM(C50:C58,C60) -> 0 | D49: =SUM(D50:D58,D60) -> 0 | E49: =SUM(E50:E58,E60) -> 0 | H49: =SUM(H50:H60) -> 0 | I49: =SUM(I50:I60) -> 0 | J49: 0 | K49: 0 | L49: 0 | M49: 0 | N49: 0 | O49: 0 | P49: 0 | Q49: 0 | R49: =SUM(R50:R60) -> 0 | S49: 0 | T49: 0 | U49: 0 | V49: 0 | W49: 0 | X49: 0 | Y49: 0 | Z49: 0 | AA49: 0 | AB49: 0 | AC49: 0 | AD49: 0 | AE49: 0 | AF49: 0 | AG49: 0 | AH49: 0 | AI49: =SUM(AI50:AI60) -> 0 | AJ49: 0 | AK49: =SUM(AK50:AK60) -> 0 | AL49: 0
B50: Onderhoud groenvoorziening | C50: 0 | D50: 0 | E50: =D50*(1+$D$23) -> 0 | H50: =E50*(1+$D$23) -> 0 | I50: =H50*(1+$D$23) -> 0 | J50: 0 | K50: 0 | L50: 0 | M50: 0 | N50: 0 | O50: 0 | P50: 0 | Q50: =P50*(1+$D$23)*Q$1 -> 0 | R50: 0 | S50: 0 | T50: 0 | U50: 0 | V50: 0 | W50: 0 | X50: 0 | Y50: 0 | Z50: 0 | AA50: 0 | AB50: 0 | AC50: 0 | AD50: 0 | AE50: 0 | AF50: 0 | AG50: 0 | AH50: 0 | AI50: 0 | AJ50: 0 | AK50: 0 | AL50: 0
B51: Onderhoud klein onderhoud | C51: 0 | D51: 0 | E51: 0 | H51: 0 | I51: 0 | J51: 0 | K51: 0 | L51: 0 | M51: 0 | N51: 0 | O51: 0 | P51: 0 | Q51: =P51*(1+$D$23)*Q$1 -> 0 | R51: =Q51*(1+$D$23)*R$1 -> 0 | S51: 0 | T51: 0 | U51: 0 | V51: 0 | W51: 0 | X51: 0 | Y51: 0 | Z51: 0 | AA51: 0 | AB51: 0 | AC51: 0 | AD51: 0 | AE51: 0 | AF51: 0 | AG51: 0 | AH51: 0 | AI51: 0 | AJ51: 0 | AK51: 0 | AL51: 0
B52: Onderhoud garage | C52: 0 | D52: 0 | E52: 0 | H52: 0 | I52: 0 | J52: 0 | K52: 0 | L52: 0 | M52: 0 | N52: 0 | O52: 0 | P52: 0 | Q52: 0 | R52: =Q52*(1+$D$23)*R$1 -> 0 | S52: 0 | T52: 0 | U52: 0 | V52: 0 | W52: 0 | X52: 0 | Y52: 0 | Z52: 0 | AA52: 0 | AB52: 0 | AC52: 0 | AD52: 0 | AE52: 0 | AF52: 0 | AG52: 0 | AH52: 0 | AI52: 0 | AJ52: 0 | AK52: 0 | AL52: 0
B53: Contract lift | C53: 0 | D53: 0 | E53: 0 | H53: 0 | I53: 0 | J53: 0 | K53: 0 | L53: 0 | M53: 0 | N53: 0 | O53: 0 | P53: 0 | Q53: 0 | R53: =Q53*(1+$D$23)*R$1 -> 0 | S53: 0 | T53: 0 | U53: 0 | V53: 0 | W53: 0 | X53: 0 | Y53: 0 | Z53: 0 | AA53: 0 | AB53: 0 | AC53: 0 | AD53: 0 | AE53: 0 | AF53: 0 | AG53: 0 | AH53: 0 | AI53: 0 | AJ53: 0 | AK53: 0 | AL53: 0
B54: Onderhoud lift +telefonie lift | C54: 0 | D54: 0 | E54: 0 | H54: 0 | I54: 0 | J54: 0 | K54: 0 | L54: 0 | M54: 0 | N54: 0 | O54: 0 | P54: 0 | Q54: 0 | R54: =Q54*(1+$D$23)*R$1 -> 0 | S54: 0 | T54: 0 | U54: 0 | V54: 0 | W54: 0 | X54: 0 | Y54: 0 | Z54: 0 | AA54: 0 | AB54: 0 | AC54: 0 | AD54: 0 | AE54: 0 | AF54: 0 | AG54: 0 | AH54: 0 | AI54: 0 | AJ54: 0 | AK54: 0 | AL54: 0
B55: Onderhoud schoonmaak | C55: 0 | D55: 0 | E55: 0 | H55: 0 | I55: 0 | J55: 0 | K55: 0 | L55: 0 | M55: 0 | N55: 0 | O55: 0 | P55: 0 | Q55: 0 | R55: =Q55*(1+$D$23)*R$1 -> 0 | S55: 0 | T55: 0 | U55: 0 | V55: 0 | W55: 0 | X55: 0 | Y55: 0 | Z55: 0 | AA55: 0 | AB55: 0 | AC55: 0 | AD55: 0 | AE55: 0 | AF55: 0 | AG55: 0 | AH55: 0 | AI55: 0 | AJ55: 0 | AK55: 0 | AL55: 0
B56: Onderhoud glasbewassing | C56: 0 | D56: 0 | E56: 0 | H56: 0 | I56: 0 | J56: 0 | K56: 0 | L56: 0 | M56: 0 | N56: 0 | O56: 0 | P56: 0 | Q56: 0 | R56: =Q56*(1+$D$23)*R$1 -> 0 | S56: 0 | T56: 0 | U56: 0 | V56: 0 | W56: 0 | X56: 0 | Y56: 0 | Z56: 0 | AA56: 0 | AB56: 0 | AC56: 0 | AD56: 0 | AE56: 0 | AF56: 0 | AG56: 0 | AH56: 0 | AI56: 0 | AJ56: 0 | AK56: 0 | AL56: 0
B57: Onderhoud CV | C57: 0 | D57: 0 | E57: 0 | H57: 0 | I57: 0 | J57: 0 | K57: 0 | L57: 0 | M57: 0 | N57: 0 | O57: 0 | P57: 0 | Q57: 0 | R57: =Q57*(1+$D$23)*R$1 -> 0 | S57: 0 | T57: 0 | U57: 0 | V57: 0 | W57: 0 | X57: 0 | Y57: 0 | Z57: 0 | AA57: 0 | AB57: 0 | AC57: 0 | AD57: 0 | AE57: 0 | AF57: 0 | AG57: 0 | AH57: 0 | AI57: 0 | AJ57: 0 | AK57: 0 | AL57: 0
B58: Reeds lopende leningen (niet-geïndexeerd) | C58: 0 | D58: 0 | E58: =D58 -> 0 | H58: =IF(COUNTBLANK($C59)=1,E58,IF(H26<=$C59,E58,0)) -> 0 | I58: =IF(COUNTBLANK($C59)=1,H58,IF(I26>$C59,0,H58)) -> 0 | J58: =IF(COUNTBLANK($C59)=1,I58,IF(J26>$C59,0,I58)) -> 0 | K58: 0 | L58: 0 | M58: 0 | N58: 0 | O58: 0 | P58: 0 | Q58: =IF(COUNTBLANK($C59)=1,P58,IF(Q26>$C59,0,P58)) -> 0 | R58: 0 | S58: 0 | T58: 0 | U58: 0 | V58: 0 | W58: 0 | X58: 0 | Y58: 0 | Z58: 0 | AA58: 0 | AB58: 0 | AC58: 0 | AD58: 0 | AE58: 0 | AF58: 0 | AG58: 0 | AH58: 0 | AI58: 0 | AJ58: 0 | AK58: 0 | AL58: 0
B59: Jaar waarin lopende leningen eindigen
B60: Overige kosten: | C60: 0 | D60: 0 | E60: =D60*(1+$D$23) -> 0 | H60: =E60*(1+$D$23) -> 0 | I60: 0 | J60: 0 | K60: 0 | L60: 0 | M60: 0 | N60: 0 | O60: 0 | P60: 0 | Q60: =P60*(1+$D$23)*Q$1 -> 0 | R60: =Q60*(1+$D$23)*R$1 -> 0 | S60: 0 | T60: 0 | U60: 0 | V60: 0 | W60: 0 | X60: 0 | Y60: 0 | Z60: 0 | AA60: 0 | AB60: 0 | AC60: 0 | AD60: 0 | AE60: 0 | AF60: 0 | AG60: 0 | AH60: 0 | AI60: 0 | AJ60: 0 | AK60: 0 | AL60: 0
B61: Administratiekosten (totaal) | C61: =SUM(C62:C63) -> 0 | D61: =SUM(D62:D63) -> 0 | E61: =SUM(E62:E63) -> 0 | H61: =SUM(H62:H63) -> 0 | I61: =SUM(I62:I63) -> 0 | J61: =SUM(J62:J63) -> 0 | K61: 0 | L61: 0 | M61: 0 | N61: 0 | O61: 0 | P61: 0 | Q61: =SUM(Q62:Q63) -> 0 | R61: =SUM(R62:R63) -> 0 | S61: 0 | T61: 0 | U61: 0 | V61: 0 | W61: 0 | X61: 0 | Y61: 0 | Z61: 0 | AA61: 0 | AB61: 0 | AC61: 0 | AD61: 0 | AE61: 0 | AF61: 0 | AG61: 0 | AH61: 0 | AI61: 0 | AJ61: 0 | AK61: 0 | AL61: 0
B62: Administratiekantoor | C62: 0 | D62: 0 | E62: =D62*(1+$D$23) -> 0 | H62: =E62*(1+$D$23) -> 0 | I62: =H62*(1+$D$23) -> 0 | J62: 0 | K62: 0 | L62: 0 | M62: 0 | N62: 0 | O62: 0 | P62: 0 | Q62: =P62*(1+$D$23)*Q$1 -> 0 | R62: =Q62*(1+$D$23)*R$1 -> 0 | S62: 0 | T62: 0 | U62: 0 | V62: 0 | W62: 0 | X62: 0 | Y62: 0 | Z62: 0 | AA62: 0 | AB62: 0 | AC62: 0 | AD62: 0 | AE62: 0 | AF62: 0 | AG62: 0 | AH62: 0 | AI62: 0 | AJ62: 0 | AK62: 0 | AL62: 0
B63: Overige kosten: | C63: 0 | D63: 0 | E63: =D63*(1+$D$23) -> 0 | H63: =E63*(1+$D$23) -> 0 | I63: 0 | J63: 0 | K63: 0 | L63: 0 | M63: 0 | N63: 0 | O63: 0 | P63: 0 | Q63: =P63*(1+$D$23)*Q$1 -> 0 | R63: =Q63*(1+$D$23)*R$1 -> 0 | S63: 0 | T63: 0 | U63: 0 | V63: 0 | W63: 0 | X63: 0 | Y63: 0 | Z63: 0 | AA63: 0 | AB63: 0 | AC63: 0 | AD63: 0 | AE63: 0 | AF63: 0 | AG63: 0 | AH63: 0 | AI63: 0 | AJ63: 0 | AK63: 0 | AL63: 0
B64: Bestuurs- en diverse kosten (totaal) | C64: =SUM(C65:C67) -> 0 | D64: =SUM(D65:D67) -> 0 | E64: =SUM(E65:E67) -> 0 | H64: =SUM(H65:H67) -> 0 | I64: =SUM(I65:I67) -> 0 | J64: 0 | K64: 0 | L64: 0 | M64: 0 | N64: 0 | O64: 0 | P64: 0 | Q64: 0 | R64: =SUM(R65:R67) -> 0 | S64: 0 | T64: 0 | U64: 0 | V64: 0 | W64: 0 | X64: 0 | Y64: 0 | Z64: 0 | AA64: 0 | AB64: 0 | AC64: 0 | AD64: 0 | AE64: 0 | AF64: 0 | AG64: 0 | AH64: 0 | AI64: 0 | AJ64: 0 | AK64: 0 | AL64: 0
B65: Bestuurskosten | C65: 0 | D65: 0 | E65: =D65*(1+$D$23) -> 0 | H65: =E65*(1+$D$23) -> 0 | I65: =H65*(1+$D$23) -> 0 | J65: 0 | K65: 0 | L65: 0 | M65: 0 | N65: 0 | O65: 0 | P65: 0 | Q65: =P65*(1+$D$23)*Q$1 -> 0 | R65: =Q65*(1+$D$23)*R$1 -> 0 | S65: 0 | T65: 0 | U65: 0 | V65: 0 | W65: 0 | X65: 0 | Y65: 0 | Z65: 0 | AA65: 0 | AB65: 0 | AC65: 0 | AD65: 0 | AE65: 0 | AF65: 0 | AG65: 0 | AH65: 0 | AI65: 0 | AJ65: 0 | AK65: 0 | AL65: 0
B66: Overige kosten: | C66: 0 | D66: 0 | E66: =D66*(1+$D$23) -> 0 | H66: =E66*(1+$D$23) -> 0 | I66: =H66*(1+$D$23) -> 0 | J66: =I66*(1+$D$23) -> 0 | K66: =J66*(1+$D$23) -> 0 | L66: =K66*(1+$D$23) -> 0 | M66: =L66*(1+$D$23) -> 0 | N66: =M66*(1+$D$23) -> 0 | O66: =N66*(1+$D$23) -> 0 | P66: =O66*(1+$D$23) -> 0 | Q66: =P66*(1+$D$23)*Q$1 -> 0 | R66: =Q66*(1+$D$23)*R$1 -> 0 | S66: 0 | T66: 0 | U66: 0 | V66: 0 | W66: 0 | X66: 0 | Y66: 0 | Z66: 0 | AA66: 0 | AB66: 0 | AC66: 0 | AD66: 0 | AE66: 0 | AF66: 0 | AG66: 0 | AH66: 0 | AI66: 0 | AJ66: 0 | AK66: 0 | AL66: 0
B67: Overige kosten (zonder indexering): | C67: 0 | D67: 0 | E67: =D67 -> 0 | F67: =IF(SUM(C67:E67)>0,"Toelichting verplicht","") ->  | H67: =E67 -> 0 | I67: =H67 -> 0 | J67: =I67 -> 0 | K67: 0 | L67: 0 | M67: 0 | N67: 0 | O67: 0 | P67: 0 | Q67: 0 | R67: =Q67 -> 0 | S67: =R67 -> 0 | T67: =S67 -> 0 | U67: =T67 -> 0 | V67: =U67 -> 0 | W67: =V67 -> 0 | X67: =W67 -> 0 | Y67: =X67 -> 0 | Z67: =Y67 -> 0 | AA67: =Z67 -> 0 | AB67: =AA67 -> 0 | AC67: =AB67 -> 0 | AD67: =AC67 -> 0 | AE67: =AD67 -> 0 | AF67: =AE67 -> 0 | AG67: =AF67 -> 0 | AH67: =AG67 -> 0 | AI67: =AH67 -> 0 | AJ67: =AI67 -> 0 | AK67: =AJ67 -> 0 | AL67: =AK67 -> 0
B68: Kosten beheer (totaal) | C68: =SUM(C69:C70) -> 0 | D68: =SUM(D69:D70) -> 0 | E68: =SUM(E69:E70) -> 0 | H68: =SUM(H69:H70) -> 0 | I68: =SUM(I69:I70) -> 0 | J68: 0 | K68: 0 | L68: 0 | M68: 0 | N68: 0 | O68: 0 | P68: 0 | Q68: 0 | R68: =SUM(R69:R70) -> 0 | S68: 0 | T68: 0 | U68: 0 | V68: 0 | W68: 0 | X68: 0 | Y68: 0 | Z68: 0 | AA68: 0 | AB68: 0 | AC68: 0 | AD68: 0 | AE68: 0 | AF68: 0 | AG68: 0 | AH68: 0 | AI68: 0 | AJ68: 0 | AK68: 0 | AL68: 0
B69: VvE beheerder | C69: 0 | D69: 0 | E69: =D69*(1+$D$23) -> 0 | H69: =E69*(1+$D$23) -> 0 | I69: =H69*(1+$D$23) -> 0 | J69: 0 | K69: 0 | L69: 0 | M69: 0 | N69: 0 | O69: 0 | P69: 0 | Q69: =P69*(1+$D$23)*Q$1 -> 0 | R69: =Q69*(1+$D$23)*R$1 -> 0 | S69: 0 | T69: 0 | U69: 0 | V69: 0 | W69: 0 | X69: 0 | Y69: 0 | Z69: 0 | AA69: 0 | AB69: 0 | AC69: 0 | AD69: 0 | AE69: 0 | AF69: 0 | AG69: 0 | AH69: 0 | AI69: 0 | AJ69: 0 | AK69: 0 | AL69: 0
B70: Overige kosten: | C70: 0 | D70: 0 | E70: =D70*(1+$D$23) -> 0 | H70: =E70*(1+$D$23) -> 0 | I70: 0 | J70: 0 | K70: 0 | L70: 0 | M70: 0 | N70: 0 | O70: 0 | P70: 0 | Q70: =P70*(1+$D$23)*Q$1 -> 0 | R70: =Q70*(1+$D$23)*R$1 -> 0 | S70: 0 | T70: 0 | U70: 0 | V70: 0 | W70: 0 | X70: 0 | Y70: 0 | Z70: 0 | AA70: 0 | AB70: 0 | AC70: 0 | AD70: 0 | AE70: 0 | AF70: 0 | AG70: 0 | AH70: 0 | AI70: 0 | AJ70: 0 | AK70: 0 | AL70: 0
B71: Aflossing + rente VvE lening | C71: =C2*$C12 -> 7271.763952 | D71: =D2*$C12 -> 7271.763952 | E71: =E2*$C12 -> 7271.763952 | H71: =H2*$C12 -> 7271.763952 | I71: 7271.763952 | J71: 7271.763952 | K71: 7271.763952 | L71: 7271.763952 | M71: 7271.763952 | N71: 7271.763952 | O71: 7271.763952 | P71: 7271.763952 | Q71: =Q2*$C12 -> 7271.763952 | R71: 7271.763952 | S71: 7271.763952 | T71: 7271.763952 | U71: 7271.763952 | V71: 7271.763952 | W71: 7271.763952 | X71: 7271.763952 | Y71: 0 | Z71: 0 | AA71: 0 | AB71: =AB2*$C12 -> 0 | AC71: =AC2*$C12 -> 0 | AD71: 0 | AE71: 0 | AF71: 0 | AG71: 0 | AH71: 0 | AI71: 0 | AJ71: 0 | AK71: 0 | AL71: 0
B73: Totaal uitgaven | C73: =C35+C41+C49+C61+C64+C68+C71+C45 -> 7271.763952 | D73: =D35+D41+D49+D61+D64+D68+D71+D45 -> 7271.763952 | E73: =E35+E41+E49+E61+E64+E68+E71+E45 -> 7271.763952 | H73: =H35+H41+H49+H61+H64+H68+H71+H45 -> 7271.763952 | I73: 7271.763952 | J73: 7271.763952 | K73: 7271.763952 | L73: 7271.763952 | M73: 7271.763952 | N73: 7271.763952 | O73: 7271.763952 | P73: 7271.763952 | Q73: 7271.763952 | R73: 7271.763952 | S73: 7271.763952 | T73: 7271.763952 | U73: 7271.763952 | V73: 7271.763952 | W73: 7271.763952 | X73: 7271.763952 | Y73: 0 | Z73: 0 | AA73: 0 | AB73: 0 | AC73: =AC35+AC41+AC49+AC61+AC64+AC68+AC71+AC45 -> 0 | AD73: 0 | AE73: 0 | AF73: 0 | AG73: 0 | AH73: 0 | AI73: =AI35+AI41+AI49+AI61+AI64+AI68+AI71+AI45 -> 0 | AJ73: 0 | AK73: =AK35+AK41+AK49+AK61+AK64+AK68+AK71+AK45 -> 0 | AL73: 0
B75: Exploitatiesaldo (incl. uitgave MJOP) | C75: =C33-C73 -> -7271.763952 | D75: =D33-D73 -> -7271.763952 | E75: =E33-E73 -> -7271.763952 | H75: =H33-H73 -> -7271.763952 | I75: -7271.763952 | J75: -7271.763952 | K75: -7271.763952 | L75: -7271.763952 | M75: -7271.763952 | N75: -7271.763952 | O75: -7271.763952 | P75: -7271.763952 | Q75: -7271.763952 | R75: -7271.763952 | S75: -7271.763952 | T75: -7271.763952 | U75: -7271.763952 | V75: -7271.763952 | W75: -7271.763952 | X75: -7271.763952 | Y75: 0 | Z75: 0 | AA75: 0 | AB75: 0 | AC75: 0 | AD75: 0 | AE75: 0 | AF75: 0 | AG75: 0 | AH75: 0 | AI75: =AI33-AI73 -> 0 | AJ75: 0 | AK75: =AK33-AK73 -> 0 | AL75: 0
B76: Check exploitatiesaldo | C76: =IF( $C8*$C9*$C10*$D22 = 0, "Niet akkoord, vul cel C8, C9, C10 en D22", IF( C75<0, "De uitgaven zijn groter dan de inkomsten.", "Exploitatie OK" )) -> Niet akkoord, vul cel C8, C9, C10 en D22 | D76: =IF( $C8*$C9*$C10*$D22 = 0, "Niet akkoord, vul cel C8, C9, C10 en D22", IF( D75<0, "De uitgaven zijn groter dan de inkomsten.", "Exploitatie OK" )) -> Niet akkoord, vul cel C8, C9, C10 en D22 | E76: =IF( $C8*$C9*$C10*$D22 = 0, "Niet akkoord, vul cel C8, C9, C10 en D22", IF( E75<0, "De uitgaven zijn groter dan de inkomsten.", "Exploitatie OK" )) -> Niet akkoord, vul cel C8, C9, C10 en D22 | H76: =IF( $C8*$C9*$C10*$D22 = 0, "Niet akkoord, vul cel C8, C9, C10 en D22", IF( H75<0, "De uitgaven zijn groter dan de inkomsten.", "Exploitatie OK" )) -> Niet akkoord, vul cel C8, C9, C10 en D22 | I76: Niet akkoord, vul cel C8, C9, C10 en D22 | J76: Niet akkoord, vul cel C8, C9, C10 en D22 | K76: Niet akkoord, vul cel C8, C9, C10 en D22 | L76: Niet akkoord, vul cel C8, C9, C10 en D22 | M76: Niet akkoord, vul cel C8, C9, C10 en D22 | N76: Niet akkoord, vul cel C8, C9, C10 en D22 | O76: Niet akkoord, vul cel C8, C9, C10 en D22 | P76: Niet akkoord, vul cel C8, C9, C10 en D22 | Q76: Niet akkoord, vul cel C8, C9, C10 en D22 | R76: Niet akkoord, vul cel C8, C9, C10 en D22 | S76: Niet akkoord, vul cel C8, C9, C10 en D22 | T76: Niet akkoord, vul cel C8, C9, C10 en D22 | U76: Niet akkoord, vul cel C8, C9, C10 en D22 | V76: Niet akkoord, vul cel C8, C9, C10 en D22 | W76: Niet akkoord, vul cel C8, C9, C10 en D22 | X76: Niet akkoord, vul cel C8, C9, C10 en D22 | Y76: Niet akkoord, vul cel C8, C9, C10 en D22 | Z76: Niet akkoord, vul cel C8, C9, C10 en D22 | AA76: Niet akkoord, vul cel C8, C9, C10 en D22 | AB76: =IF( $C8*$C9*$C10*$D22 = 0, "Niet akkoord, vul cel C8, C9, C10 en D22", IF( AB75<0, "De uitgaven zijn groter dan de inkomsten.", "Exploitatie OK" )) -> Niet akkoord, vul cel C8, C9, C10 en D22 | AC76: Niet akkoord, vul cel C8, C9, C10 en D22 | AD76: =IF( $C8*$C9*$C10*$D22 = 0, "Niet akkoord, vul cel C8, C9, C10 en D22", IF( AD75<0, "De uitgaven zijn groter dan de inkomsten.", "Exploitatie OK" )) -> Niet akkoord, vul cel C8, C9, C10 en D22 | AE76: Niet akkoord, vul cel C8, C9, C10 en D22 | AF76: Niet akkoord, vul cel C8, C9, C10 en D22 | AG76: Niet akkoord, vul cel C8, C9, C10 en D22 | AH76: Niet akkoord, vul cel C8, C9, C10 en D22 | AI76: Niet akkoord, vul cel C8, C9, C10 en D22 | AJ76: Niet akkoord, vul cel C8, C9, C10 en D22 | AK76: Niet akkoord, vul cel C8, C9, C10 en D22 | AL76: Niet akkoord, vul cel C8, C9, C10 en D22
B78: Bijzonderheden

Sheet Jaartabel (hidden)
B2: Ingangsdatum | C2: =Begroting!D22 -> 00:00:00
B4: Kalenderjaar | C4: Jaar ja/nee | D4: Maanden | E4: Looptijd | F4: Laatste jaar | G4: Dummy jaar
B5: Leeglaten
B6: =Begroting!C26 -> 2022 | C6: =IF(B6>=YEAR(C$2),1,0) -> 1 | D6: =IF(C6=0,0,IF(SUM(C5:C6)=1,13-MONTH(C$2),12)) -> 12 | E6: =MIN(SUM(D$6:D6),Begroting!C$9) -> 12 | F6: =IF(AND(E6=Begroting!C$9,Jaartabel!E6<>Jaartabel!E5),1,0) -> 0 | G6: =IF(C6=0,0,IF(SUM(F$5:F5)=1,0,1)) -> 1 | H6: =G6*(E6-E5)/12 -> 1
B7: =B6+1 -> 2023 | C7: =IF(B7>=YEAR(C$2),1,0) -> 1 | D7: =IF(C7=0,0,IF(SUM(C6:C7)=1,13-MONTH(C$2),12)) -> 12 | E7: =MIN(SUM(D$6:D7),Begroting!C$9) -> 24 | F7: =IF(AND(E7=Begroting!C$9,Jaartabel!E7<>Jaartabel!E6),1,0) -> 0 | G7: =IF(C7=0,0,IF(SUM(F$5:F6)=1,0,1)) -> 1 | H7: =G7*(E7-E6)/12 -> 1
B8: =B7+1 -> 2024 | C8: =IF(B8>=YEAR(C$2),1,0) -> 1 | D8: =IF(C8=0,0,IF(SUM(C7:C8)=1,13-MONTH(C$2),12)) -> 12 | E8: =MIN(SUM(D$6:D8),Begroting!C$9) -> 36 | F8: =IF(AND(E8=Begroting!C$9,Jaartabel!E8<>Jaartabel!E7),1,0) -> 0 | G8: =IF(C8=0,0,IF(SUM(F$5:F7)=1,0,1)) -> 1 | H8: 1
B9: 2025 | C9: 1 | D9: 12 | E9: =MIN(SUM(D$6:D9),Begroting!C$9) -> 48 | F9: =IF(AND(E9=Begroting!C$9,Jaartabel!E9<>Jaartabel!E8),1,0) -> 0 | G9: =IF(C9=0,0,IF(SUM(F$5:F8)=1,0,1)) -> 1 | H9: 1
B10: 2026 | C10: 1 | D10: 12 | E10: =MIN(SUM(D$6:D10),Begroting!C$9) -> 60 | F10: =IF(AND(E10=Begroting!C$9,Jaartabel!E10<>Jaartabel!E9),1,0) -> 0 | G10: =IF(C10=0,0,IF(SUM(F$5:F9)=1,0,1)) -> 1 | H10: 1
B11: 2027 | C11: 1 | D11: 12 | E11: =MIN(SUM(D$6:D11),Begroting!C$9) -> 72 | F11: =IF(AND(E11=Begroting!C$9,Jaartabel!E11<>Jaartabel!E10),1,0) -> 0 | G11: =IF(C11=0,0,IF(SUM(F$5:F10)=1,0,1)) -> 1 | H11: 1
B12: 2028 | C12: 1 | D12: 12 | E12: =MIN(SUM(D$6:D12),Begroting!C$9) -> 84 | F12: =IF(AND(E12=Begroting!C$9,Jaartabel!E12<>Jaartabel!E11),1,0) -> 0 | G12: =IF(C12=0,0,IF(SUM(F$5:F11)=1,0,1)) -> 1 | H12: 1
B13: 2029 | C13: 1 | D13: 12 | E13: =MIN(SUM(D$6:D13),Begroting!C$9) -> 96 | F13: =IF(AND(E13=Begroting!C$9,Jaartabel!E13<>Jaartabel!E12),1,0) -> 0 | G13: =IF(C13=0,0,IF(SUM(F$5:F12)=1,0,1)) -> 1 | H13: 1
B14: 2030 | C14: 1 | D14: 12 | E14: =MIN(SUM(D$6:D14),Begroting!C$9) -> 108 | F14: =IF(AND(E14=Begroting!C$9,Jaartabel!E14<>Jaartabel!E13),1,0) -> 0 | G14: =IF(C14=0,0,IF(SUM(F$5:F13)=1,0,1)) -> 1 | H14: 1
B15: 2031 | C15: 1 | D15: 12 | E15: =MIN(SUM(D$6:D15),Begroting!C$9) -> 120 | F15: =IF(AND(E15=Begroting!C$9,Jaartabel!E15<>Jaartabel!E14),1,0) -> 0 | G15: =IF(C15=0,0,IF(SUM(F$5:F14)=1,0,1)) -> 1 | H15: 1
B16: 2032 | C16: 1 | D16: 12 | E16: =MIN(SUM(D$6:D16),Begroting!C$9) -> 132 | F16: =IF(AND(E16=Begroting!C$9,Jaartabel!E16<>Jaartabel!E15),1,0) -> 0 | G16: =IF(C16=0,0,IF(SUM(F$5:F15)=1,0,1)) -> 1 | H16: 1
B17: 2033 | C17: 1 | D17: 12 | E17: =MIN(SUM(D$6:D17),Begroting!C$9) -> 144 | F17: =IF(AND(E17=Begroting!C$9,Jaartabel!E17<>Jaartabel!E16),1,0) -> 0 | G17: =IF(C17=0,0,IF(SUM(F$5:F16)=1,0,1)) -> 1 | H17: 1
B18: 2034 | C18: 1 | D18: 12 | E18: =MIN(SUM(D$6:D18),Begroting!C$9) -> 156 | F18: =IF(AND(E18=Begroting!C$9,Jaartabel!E18<>Jaartabel!E17),1,0) -> 0 | G18: =IF(C18=0,0,IF(SUM(F$5:F17)=1,0,1)) -> 1 | H18: 1
B19: 2035 | C19: 1 | D19: 12 | E19: =MIN(SUM(D$6:D19),Begroting!C$9) -> 168 | F19: =IF(AND(E19=Begroting!C$9,Jaartabel!E19<>Jaartabel!E18),1,0) -> 0 | G19: =IF(C19=0,0,IF(SUM(F$5:F18)=1,0,1)) -> 1 | H19: 1
B20: 2036 | C20: 1 | D20: 12 | E20: =MIN(SUM(D$6:D20),Begroting!C$9) -> 180 | F20: =IF(AND(E20=Begroting!C$9,Jaartabel!E20<>Jaartabel!E19),1,0) -> 0 | G20: =IF(C20=0,0,IF(SUM(F$5:F19)=1,0,1)) -> 1 | H20: 1
B21: 2037 | C21: 1 | D21: 12 | E21: =MIN(SUM(D$6:D21),Begroting!C$9) -> 192 | F21: =IF(AND(E21=Begroting!C$9,Jaartabel!E21<>Jaartabel!E20),1,0) -> 0 | G21: =IF(C21=0,0,IF(SUM(F$5:F20)=1,0,1)) -> 1 | H21: 1
B22: 2038 | C22: 1 | D22: 12 | E22: =MIN(SUM(D$6:D22),Begroting!C$9) -> 204 | F22: =IF(AND(E22=Begroting!C$9,Jaartabel!E22<>Jaartabel!E21),1,0) -> 0 | G22: =IF(C22=0,0,IF(SUM(F$5:F21)=1,0,1)) -> 1 | H22: 1
B23: 2039 | C23: 1 | D23: 12 | E23: =MIN(SUM(D$6:D23),Begroting!C$9) -> 216 | F23: =IF(AND(E23=Begroting!C$9,Jaartabel!E23<>Jaartabel!E22),1,0) -> 0 | G23: =IF(C23=0,0,IF(SUM(F$5:F22)=1,0,1)) -> 1 | H23: 1
B24: 2040 | C24: 1 | D24: 12 | E24: =MIN(SUM(D$6:D24),Begroting!C$9) -> 228 | F24: =IF(AND(E24=Begroting!C$9,Jaartabel!E24<>Jaartabel!E23),1,0) -> 0 | G24: =IF(C24=0,0,IF(SUM(F$5:F23)=1,0,1)) -> 1 | H24: 1
B25: 2041 | C25: 1 | D25: 12 | E25: =MIN(SUM(D$6:D25),Begroting!C$9) -> 240 | F25: =IF(AND(E25=Begroting!C$9,Jaartabel!E25<>Jaartabel!E24),1,0) -> 1 | G25: =IF(C25=0,0,IF(SUM(F$5:F24)=1,0,1)) -> 1 | H25: 1
B26: 2042 | C26: 1 | D26: 12 | E26: =MIN(SUM(D$6:D26),Begroting!C$9) -> 240 | F26: =IF(AND(E26=Begroting!C$9,Jaartabel!E26<>Jaartabel!E25),1,0) -> 0 | G26: =IF(C26=0,0,IF(SUM(F$5:F25)=1,0,1)) -> 0 | H26: 0
B27: 2043 | C27: 1 | D27: 12 | E27: =MIN(SUM(D$6:D27),Begroting!C$9) -> 240 | F27: =IF(AND(E27=Begroting!C$9,Jaartabel!E27<>Jaartabel!E26),1,0) -> 0 | G27: =IF(C27=0,0,IF(SUM(F$5:F26)=1,0,1)) -> 0 | H27: 0
B28: 2044 | C28: 1 | D28: 12 | E28: =MIN(SUM(D$6:D28),Begroting!C$9) -> 240 | F28: =IF(AND(E28=Begroting!C$9,Jaartabel!E28<>Jaartabel!E27),1,0) -> 0 | G28: =IF(C28=0,0,IF(SUM(F$5:F27)=1,0,1)) -> 0 | H28: 0
B29: 2045 | C29: 1 | D29: 12 | E29: =MIN(SUM(D$6:D29),Begroting!C$9) -> 240 | F29: =IF(AND(E29=Begroting!C$9,Jaartabel!E29<>Jaartabel!E28),1,0) -> 0 | G29: =IF(C29=0,0,IF(SUM(F$5:F28)=1,0,1)) -> 0 | H29: 0
B30: 2046 | C30: 1 | D30: 12 | E30: =MIN(SUM(D$6:D30),Begroting!C$9) -> 240 | F30: =IF(AND(E30=Begroting!C$9,Jaartabel!E30<>Jaartabel!E29),1,0) -> 0 | G30: =IF(C30=0,0,IF(SUM(F$5:F29)=1,0,1)) -> 0 | H30: 0
B31: 2047 | C31: 1 | D31: 12 | E31: =MIN(SUM(D$6:D31),Begroting!C$9) -> 240 | F31: =IF(AND(E31=Begroting!C$9,Jaartabel!E31<>Jaartabel!E30),1,0) -> 0 | G31: =IF(C31=0,0,IF(SUM(F$5:F30)=1,0,1)) -> 0 | H31: 0
B32: 2048 | C32: 1 | D32: 12 | E32: =MIN(SUM(D$6:D32),Begroting!C$9) -> 240 | F32: =IF(AND(E32=Begroting!C$9,Jaartabel!E32<>Jaartabel!E31),1,0) -> 0 | G32: =IF(C32=0,0,IF(SUM(F$5:F31)=1,0,1)) -> 0 | H32: 0
B33: 2049 | C33: 1 | D33: 12 | E33: =MIN(SUM(D$6:D33),Begroting!C$9) -> 240 | F33: =IF(AND(E33=Begroting!C$9,Jaartabel!E33<>Jaartabel!E32),1,0) -> 0 | G33: =IF(C33=0,0,IF(SUM(F$5:F32)=1,0,1)) -> 0 | H33: 0
B34: 2050 | C34: 1 | D34: 12 | E34: =MIN(SUM(D$6:D34),Begroting!C$9) -> 240 | F34: =IF(AND(E34=Begroting!C$9,Jaartabel!E34<>Jaartabel!E33),1,0) -> 0 | G34: =IF(C34=0,0,IF(SUM(F$5:F33)=1,0,1)) -> 0 | H34: 0
B35: 2051 | C35: 1 | D35: 12 | E35: =MIN(SUM(D$6:D35),Begroting!C$9) -> 240 | F35: =IF(AND(E35=Begroting!C$9,Jaartabel!E35<>Jaartabel!E34),1,0) -> 0 | G35: =IF(C35=0,0,IF(SUM(F$5:F34)=1,0,1)) -> 0 | H35: 0
B36: 2052 | C36: 1 | D36: 12 | E36: =MIN(SUM(D$6:D36),Begroting!C$9) -> 240 | F36: =IF(AND(E36=Begroting!C$9,Jaartabel!E36<>Jaartabel!E35),1,0) -> 0 | G36: =IF(C36=0,0,IF(SUM(F$5:F35)=1,0,1)) -> 0 | H36: 0
B37: =B36+1 -> 2053 | C37: 1 | D37: 12 | E37: =MIN(SUM(D$6:D37),Begroting!C$9) -> 240 | F37: =IF(AND(E37=Begroting!C$9,Jaartabel!E37<>Jaartabel!E36),1,0) -> 0 | G37: =IF(C37=0,0,IF(SUM(F$5:F36)=1,0,1)) -> 0 | H37: 0
B38: 2054 | C38: 1 | D38: 12 | E38: =MIN(SUM(D$6:D38),Begroting!C$9) -> 240 | F38: =IF(AND(E38=Begroting!C$9,Jaartabel!E38<>Jaartabel!E37),1,0) -> 0 | G38: =IF(C38=0,0,IF(SUM(F$5:F37)=1,0,1)) -> 0 | H38: 0
B39: =B38+1 -> 2055 | C39: 1 | D39: 12 | E39: =MIN(SUM(D$6:D39),Begroting!C$9) -> 240 | F39: =IF(AND(E39=Begroting!C$9,Jaartabel!E39<>Jaartabel!E38),1,0) -> 0 | G39: =IF(C39=0,0,IF(SUM(F$5:F38)=1,0,1)) -> 0 | H39: 0

Sheet Keuzelijsten (hidden)
B2: Keuzelijsten
B3: Looptijd
B4: 120
B5: 180
B6: 240
B7: 360
B9: ja/nee
B10: ja
B11: nee
B13: Inflatie
B14: 0
B15: 0.01
B16: 0.02
B17: 0.03
B18: 0.04
B19: 0.05
B20: 0.06
B21: 0.07
B22: 0.08
B23: 0.09
B24: 0.1
B26: Datum
B27: 2019-01-01

Sheet Liquiditeitsprognose
D1: =Begroting!C1 -> 1 | E1: =Begroting!D1 -> 1 | F1: =Begroting!E1 -> 1 | G1: =Begroting!H1 -> 1 | H1: =Begroting!I1 -> 1 | I1: =Begroting!J1 -> 1 | J1: =Begroting!K1 -> 1 | K1: =Begroting!L1 -> 1 | L1: =Begroting!M1 -> 1 | M1: =Begroting!N1 -> 1 | N1: =Begroting!O1 -> 1 | O1: =Begroting!P1 -> 1 | P1: =Begroting!Q1 -> 1 | Q1: =Begroting!R1 -> 1 | R1: =Begroting!S1 -> 1 | S1: =Begroting!T1 -> 1 | T1: =Begroting!U1 -> 1 | U1: =Begroting!V1 -> 1 | V1: =Begroting!W1 -> 1 | W1: =Begroting!X1 -> 1 | X1: =Begroting!Y1 -> 0 | Y1: =Begroting!Z1 -> 0 | Z1: =Begroting!AA1 -> 0 | AA1: =Begroting!AB1 -> 0 | AB1: =Begroting!AC1 -> 0 | AC1: =Begroting!AD1 -> 0 | AD1: =Begroting!AE1 -> 0 | AE1: =Begroting!AF1 -> 0 | AF1: =Begroting!AG1 -> 0 | AG1: =Begroting!AH1 -> 0 | AH1: =Begroting!AI1 -> 0 | AI1: =Begroting!AJ1 -> 0 | AJ1: =Begroting!AK1 -> 0
D2: 1 | E2: 1 | F2: 1 | G2: =VLOOKUP(G15,Jaartabel!$B$6:$G$39,6,FALSE) -> 1 | H2: =VLOOKUP(H15,Jaartabel!$B$6:$G$39,6,FALSE) -> 1 | I2: =VLOOKUP(I15,Jaartabel!$B$6:$G$39,6,FALSE) -> 1 | J2: =VLOOKUP(J15,Jaartabel!$B$6:$G$39,6,FALSE) -> 1 | K2: =VLOOKUP(K15,Jaartabel!$B$6:$G$39,6,FALSE) -> 1 | L2: =VLOOKUP(L15,Jaartabel!$B$6:$G$39,6,FALSE) -> 1 | M2: =VLOOKUP(M15,Jaartabel!$B$6:$G$39,6,FALSE) -> 1 | N2: =VLOOKUP(N15,Jaartabel!$B$6:$G$39,6,FALSE) -> 1 | O2: =VLOOKUP(O15,Jaartabel!$B$6:$G$39,6,FALSE) -> 1 | P2: =VLOOKUP(P15,Jaartabel!$B$6:$G$39,6,FALSE) -> 1 | Q2: =VLOOKUP(Q15,Jaartabel!$B$6:$G$39,6,FALSE) -> 1 | R2: =VLOOKUP(R15,Jaartabel!$B$6:$G$39,6,FALSE) -> 1 | S2: =VLOOKUP(S15,Jaartabel!$B$6:$G$39,6,FALSE) -> 1 | T2: =VLOOKUP(T15,Jaartabel!$B$6:$G$39,6,FALSE) -> 1 | U2: =VLOOKUP(U15,Jaartabel!$B$6:$G$39,6,FALSE) -> 1 | V2: =VLOOKUP(V15,Jaartabel!$B$6:$G$39,6,FALSE) -> 1 | W2: =VLOOKUP(W15,Jaartabel!$B$6:$G$39,6,FALSE) -> 1 | X2: =VLOOKUP(X15,Jaartabel!$B$6:$G$39,6,FALSE) -> 0 | Y2: =VLOOKUP(Y15,Jaartabel!$B$6:$G$39,6,FALSE) -> 0 | Z2: =VLOOKUP(Z15,Jaartabel!$B$6:$G$39,6,FALSE) -> 0 | AA2: =VLOOKUP(AA15,Jaartabel!$B$6:$G$39,6,FALSE) -> 0 | AB2: =VLOOKUP(AB15,Jaartabel!$B$6:$G$39,6,FALSE) -> 0 | AC2: =VLOOKUP(AC15,Jaartabel!$B$6:$G$39,6,FALSE) -> 0 | AD2: =VLOOKUP(AD15,Jaartabel!$B$6:$G$39,6,FALSE) -> 0 | AE2: =VLOOKUP(AE15,Jaartabel!$B$6:$G$39,6,FALSE) -> 0 | AF2: =VLOOKUP(AF15,Jaartabel!$B$6:$G$39,6,FALSE) -> 0 | AG2: =VLOOKUP(AG15,Jaartabel!$B$6:$G$39,6,FALSE) -> 0 | AH2: =VLOOKUP(AH15,Jaartabel!$B$6:$G$39,6,FALSE) -> 0 | AI2: =VLOOKUP(AI15,Jaartabel!$B$6:$G$39,6,FALSE) -> 0 | AJ2: =VLOOKUP(AJ15,Jaartabel!$B$6:$G$39,6,FALSE) -> 0
B3: =Begroting!B6 -> SVn_18_1_2022
B4: Vul de witte velden s.v.p. in.
B6: Uitgaven MJOP en inflatie
B7: Vult u onder 'Uitgaven MJOP' (regel 18) de bedragen inclusief inflatie in? | D7: ja
B8: =IF(D7="nee","Zo nee, wilt u dat over de 'Uitgaven MJOP' (regel 17) inflatie wordt berekend?","N.v.t.") -> N.v.t. | D8: nee
B9: =IF( D7="ja", "N.v.t.", IF(D8 ="nee", "Het MJOP wordt wel verhoogd met het inflatiepercentage uit tabblad 'Begroting'.", "Vul het gewenste inflatiepercentage in." )) -> N.v.t. | D9: 0.01
B10: =IF(D7="ja","De 'Uitgaven MJOP' zijn reeds verhoogd met inflatie.",IF(D9<Begroting!D23,"Het MJOP wordt minimaal verhoogd met het inflatiepercentage uit tabblad 'Begroting'.","Het MJOP wordt verhoogd met het opgegeven inflatiepercentage.")) -> De 'Uitgaven MJOP' zijn reeds verhoogd met inflatie. | D10: =IF(D7="nee",MAX(D9,Begroting!D23),0) -> 0
C12: Jaar | D12: 1 | E12: 1 | F12: 2 | G12: 3 | H12: 4 | I12: 5 | J12: 6 | K12: 7 | L12: 8 | M12: 9 | N12: 10 | O12: 11 | P12: 12 | Q12: 13 | R12: 14 | S12: 15 | T12: 16 | U12: 17 | V12: 18 | W12: 19 | X12: 20 | Y12: 21 | Z12: 22 | AA12: 23 | AB12: 24 | AC12: 25 | AD12: 26 | AE12: 27 | AF12: 28 | AG12: 29 | AH12: 30 | AI12: 31 | AJ12: 32
C13: Inflatiefactor MJOP | D13: =IF($D7="ja",1,(1+$D10)^(D12-1)) -> 1 | E13: =IF($D7="ja",1,(1+$D10)^(E12-1)) -> 1 | F13: =IF($D7="ja",1,(1+$D10)^(F12-1)) -> 1 | G13: =IF($D7="ja",1,(1+$D10)^(G12-1)) -> 1 | H13: =IF($D7="ja",1,(1+$D10)^(H12-1)) -> 1 | I13: 1 | J13: 1 | K13: 1 | L13: 1 | M13: 1 | N13: 1 | O13: 1 | P13: 1 | Q13: 1 | R13: 1 | S13: 1 | T13: 1 | U13: 1 | V13: 1 | W13: 1 | X13: 1 | Y13: 1 | Z13: 1 | AA13: 1 | AB13: 1 | AC13: 1 | AD13: 1 | AE13: 1 | AF13: 1 | AG13: =IF($D7="ja",1,(1+$D10)^(AG12-1)) -> 1 | AH13: 1 | AI13: 1 | AJ13: 1
C14: Uitgaven MJOP (na inflatie) | D14: =D18*D13 -> 0 | E14: =E18*E13 -> 0 | F14: 0 | G14: 0 | H14: 0 | I14: 0 | J14: 0 | K14: 0 | L14: 0 | M14: 0 | N14: 0 | O14: 0 | P14: 0 | Q14: 0 | R14: 0 | S14: 0 | T14: 0 | U14: 0 | V14: 0 | W14: 0 | X14: 0 | Y14: 0 | Z14: 0 | AA14: 0 | AB14: 0 | AC14: 0 | AD14: 0 | AE14: 0 | AF14: 0 | AG14: =AG18*AG13 -> 0 | AH14: =AH18*AH13 -> 0 | AI14: 0 | AJ14: 0
B15: Omschrijving | C15: Invulinstructie en toelichting | D15: =E15-1 -> 2022 | E15: =Begroting!D26 -> 2023 | F15: =E15+1 -> 2024 | G15: 2025 | H15: 2026 | I15: 2027 | J15: 2028 | K15: 2029 | L15: 2030 | M15: 2031 | N15: 2032 | O15: 2033 | P15: 2034 | Q15: 2035 | R15: 2036 | S15: 2037 | T15: =S15+1 -> 2038 | U15: 2039 | V15: 2040 | W15: 2041 | X15: 2042 | Y15: 2043 | Z15: 2044 | AA15: 2045 | AB15: 2046 | AC15: 2047 | AD15: 2048 | AE15: 2049 | AF15: =AE15+1 -> 2050 | AG15: =AF15+1 -> 2051 | AH15: =AG15+1 -> 2052 | AI15: =AH15+1 -> 2053 | AJ15: =AI15+1 -> 2054
B16: Totale reserves | C16: =CONCATENATE("Vul de stand van de reserves per 31-12-",D15-1,".") -> Vul de stand van de reserves per 31-12-2021. | D16: 6000 | E16: =D25 -> 6000 | F16: =E25 -> 6000 | G16: =F25 -> 6000 | H16: 6000 | I16: 6000 | J16: 6000 | K16: 6000 | L16: 6000 | M16: 6000 | N16: 6000 | O16: 6000 | P16: 6000 | Q16: 6000 | R16: 6000 | S16: 6000 | T16: =S25 -> 6000 | U16: =T25 -> 6000 | V16: =U25 -> 6000 | W16: =V25 -> 6000 | X16: =W25 -> 6000 | Y16: =X25 -> 6000 | Z16: =Y25 -> 6000 | AA16: =Z25 -> 6000 | AB16: =AA25 -> 6000 | AC16: =AB25 -> 6000 | AD16: =AC25 -> 6000 | AE16: =AD25 -> 6000 | AF16: =AE25 -> 6000 | AG16: =AF25 -> 6000 | AH16: =AG25 -> 6000 | AI16: =AH25 -> 6000 | AJ16: =AI25 -> 6000
B17: Uitgaven project verduurzaming | C17: Dit moet minimaal gelijk zijn aan de VvE lening. | D17: 0 | E17: 0 | F17: 0 | G17: 0
B18: Uitgaven MJOP | C18: Vul per kalenderjaar de uitgaven uit het MJOP in. | D18: 0 | E18: 0 | F18: 0 | G18: 0 | H18: 0 | I18: 0 | J18: 0 | K18: 0 | L18: 0 | M18: 0 | N18: 0 | O18: 0 | P18: 0 | Q18: 0 | R18: 0 | S18: 0 | T18: 0 | U18: 0 | V18: 0 | W18: 0 | X18: 0 | Y18: 0 | Z18: 0 | AA18: 0 | AB18: 0 | AC18: 0 | AD18: 0 | AE18: 0 | AF18: 0 | AG18: 0 | AH18: 0 | AI18: 0 | AJ18: 0
B19: Uitgaven MJOP (na inflatie) | C19: Dit zijn de uitgaven inclusief inflatie. | D19: =D14 -> 0 | E19: 0 | F19: =F14 -> 0 | G19: 0 | H19: 0 | I19: 0 | J19: 0 | K19: 0 | L19: 0 | M19: 0 | N19: 0 | O19: 0 | P19: 0 | Q19: 0 | R19: 0 | S19: 0 | T19: 0 | U19: 0 | V19: 0 | W19: 0 | X19: 0 | Y19: 0 | Z19: 0 | AA19: 0 | AB19: 0 | AC19: 0 | AD19: 0 | AE19: 0 | AF19: =AF14 -> 0 | AG19: 0 | AH19: 0 | AI19: 0 | AJ19: 0
B20: VvE lening | C20: Wordt gevuld vanuit tabblad 'Begroting'. | D20: =IF(D15=YEAR(Begroting!$D22),Begroting!$C8,0) -> 0 | E20: =IF(E15=YEAR(Begroting!$D22),Begroting!$C8,0) -> 0 | F20: =IF(F15=YEAR(Begroting!$D22),Begroting!$C8,0) -> 0
B21: Subsidie | C21: Handmatig invullen indien van toepassing. | D21: 0 | E21: 0
B22: Dotatie | C22: Wordt gevuld vanuit tabblad 'Begroting'. | D22: =Begroting!C45 -> 0 | E22: =Begroting!D45 -> 0 | F22: =Begroting!E45 -> 0 | G22: =Begroting!H45 -> 0 | H22: =Begroting!I45 -> 0 | I22: =Begroting!J45 -> 0 | J22: =Begroting!K45 -> 0 | K22: =Begroting!L45 -> 0 | L22: =Begroting!M45 -> 0 | M22: =Begroting!N45 -> 0 | N22: =Begroting!O45 -> 0 | O22: =Begroting!P45 -> 0 | P22: =Begroting!Q45 -> 0 | Q22: =Begroting!R45 -> 0 | R22: =Begroting!S45 -> 0 | S22: =Begroting!T45 -> 0 | T22: =Begroting!U45 -> 0 | U22: =Begroting!V45 -> 0 | V22: =Begroting!W45 -> 0 | W22: =Begroting!X45 -> 0 | X22: =Begroting!Y45 -> 0 | Y22: =Begroting!Z45 -> 0 | Z22: =Begroting!AA45 -> 0 | AA22: =Begroting!AB45 -> 0 | AB22: =Begroting!AC45 -> 0 | AC22: =Begroting!AD45 -> 0 | AD22: =Begroting!AE45 -> 0 | AE22: =Begroting!AF45 -> 0 | AF22: =Begroting!AG45 -> 0 | AG22: =Begroting!AH45 -> 0 | AH22: =Begroting!AI45 -> 0 | AI22: =Begroting!AJ45 -> 0 | AJ22: =Begroting!AK45 -> 0
B23: Eenmalige extra inleg | C23: Optioneel: vul extra inleg in. | D23: 0 | E23: 0 | F23: 0 | G23: 0 | H23: 0 | I23: 0 | J23: 0 | K23: 0 | L23: 0 | M23: 0 | N23: 0 | O23: 0 | P23: 0 | Q23: 0 | R23: 0 | S23: 0 | T23: 0 | U23: 0 | V23: 0 | W23: 0 | X23: 0 | Y23: 0 | Z23: 0 | AA23: 0 | AB23: 0 | AC23: 0 | AD23: 0 | AE23: 0 | AF23: 0 | AG23: 0 | AH23: 0 | AI23: 0 | AJ23: 0
B24: Exploitatiesaldo | C24: Wordt gevuld vanuit tabblad 'Begroting'. | D24: =Begroting!C75 -> -7271.763952 | E24: =Begroting!D75 -> -7271.763952 | F24: =Begroting!E75 -> -7271.763952 | G24: =Begroting!H75 -> -7271.763952 | H24: =Begroting!I75 -> -7271.763952 | I24: =Begroting!J75 -> -7271.763952 | J24: =Begroting!K75 -> -7271.763952 | K24: =Begroting!L75 -> -7271.763952 | L24: =Begroting!M75 -> -7271.763952 | M24: =Begroting!N75 -> -7271.763952 | N24: =Begroting!O75 -> -7271.763952 | O24: =Begroting!P75 -> -7271.763952 | P24: =Begroting!Q75 -> -7271.763952 | Q24: =Begroting!R75 -> -7271.763952 | R24: =Begroting!S75 -> -7271.763952 | S24: =Begroting!T75 -> -7271.763952 | T24: =Begroting!U75 -> -7271.763952 | U24: =Begroting!V75 -> -7271.763952 | V24: =Begroting!W75 -> -7271.763952 | W24: =Begroting!X75 -> -7271.763952 | X24: =Begroting!Y75 -> 0 | Y24: =Begroting!Z75 -> 0 | Z24: =Begroting!AA75 -> 0 | AA24: =Begroting!AB75 -> 0 | AB24: =Begroting!AC75 -> 0 | AC24: =Begroting!AD75 -> 0 | AD24: =Begroting!AE75 -> 0 | AE24: =Begroting!AF75 -> 0 | AF24: =Begroting!AG75 -> 0 | AG24: =Begroting!AH75 -> 0 | AH24: =Begroting!AI75 -> 0 | AI24: =Begroting!AJ75 -> 0 | AJ24: =Begroting!AK75 -> 0
B25: Totaal reserves | C25: Dit is het saldo van de reserves per einde kalenderjaar | D25: =SUM(D16-D17-D19+D20+D21+D22+D23+IF(Begroting!$D24="ja",D24,0)) -> 6000 | E25: =SUM(E16-E17-E19+E20+E21+E22+E23+IF(Begroting!$D24="ja",E24,0)) -> 6000 | F25: =SUM(F16-F17-F19+F20+F21+F22+F23+IF(Begroting!$D24="ja",F24,0)) -> 6000 | G25: =SUM(G16-G17-G19+G20+G21+G22+G23+IF(Begroting!$D24="ja",G24,0)) -> 6000 | H25: =SUM(H16-H17-H19+H20+H21+H22+H23+IF(Begroting!$D24="ja",H24,0)) -> 6000 | I25: =SUM(I16-I17-I19+I20+I21+I22+I23+IF(Begroting!$D24="ja",I24,0)) -> 6000 | J25: =SUM(J16-J17-J19+J20+J21+J22+J23+IF(Begroting!$D24="ja",J24,0)) -> 6000 | K25: =SUM(K16-K17-K19+K20+K21+K22+K23+IF(Begroting!$D24="ja",K24,0)) -> 6000 | L25: =SUM(L16-L17-L19+L20+L21+L22+L23+IF(Begroting!$D24="ja",L24,0)) -> 6000 | M25: =SUM(M16-M17-M19+M20+M21+M22+M23+IF(Begroting!$D24="ja",M24,0)) -> 6000 | N25: =SUM(N16-N17-N19+N20+N21+N22+N23+IF(Begroting!$D24="ja",N24,0)) -> 6000 | O25: =SUM(O16-O17-O19+O20+O21+O22+O23+IF(Begroting!$D24="ja",O24,0)) -> 6000 | P25: =SUM(P16-P17-P19+P20+P21+P22+P23+IF(Begroting!$D24="ja",P24,0)) -> 6000 | Q25: =SUM(Q16-Q17-Q19+Q20+Q21+Q22+Q23+IF(Begroting!$D24="ja",Q24,0)) -> 6000 | R25: =SUM(R16-R17-R19+R20+R21+R22+R23+IF(Begroting!$D24="ja",R24,0)) -> 6000 | S25: =SUM(S16-S17-S19+S20+S21+S22+S23+IF(Begroting!$D24="ja",S24,0)) -> 6000 | T25: =SUM(T16-T17-T19+T20+T21+T22+T23+IF(Begroting!$D24="ja",T24,0)) -> 6000 | U25: =SUM(U16-U17-U19+U20+U21+U22+U23+IF(Begroting!$D24="ja",U24,0)) -> 6000 | V25: =SUM(V16-V17-V19+V20+V21+V22+V23+IF(Begroting!$D24="ja",V24,0)) -> 6000 | W25: =SUM(W16-W17-W19+W20+W21+W22+W23+IF(Begroting!$D24="ja",W24,0)) -> 6000 | X25: =SUM(X16-X17-X19+X20+X21+X22+X23+IF(Begroting!$D24="ja",X24,0)) -> 6000 | Y25: =SUM(Y16-Y17-Y19+Y20+Y21+Y22+Y23+IF(Begroting!$D24="ja",Y24,0)) -> 6000 | Z25: =SUM(Z16-Z17-Z19+Z20+Z21+Z22+Z23+IF(Begroting!$D24="ja",Z24,0)) -> 6000 | AA25: =SUM(AA16-AA17-AA19+AA20+AA21+AA22+AA23+IF(Begroting!$D24="ja",AA24,0)) -> 6000 | AB25: =SUM(AB16-AB17-AB19+AB20+AB21+AB22+AB23+IF(Begroting!$D24="ja",AB24,0)) -> 6000 | AC25: =SUM(AC16-AC17-AC19+AC20+AC21+AC22+AC23+IF(Begroting!$D24="ja",AC24,0)) -> 6000 | AD25: =SUM(AD16-AD17-AD19+AD20+AD21+AD22+AD23+IF(Begroting!$D24="ja",AD24,0)) -> 6000 | AE25: =SUM(AE16-AE17-AE19+AE20+AE21+AE22+AE23+IF(Begroting!$D24="ja",AE24,0)) -> 6000 | AF25: =SUM(AF16-AF17-AF19+AF20+AF21+AF22+AF23+IF(Begroting!$D24="ja",AF24,0)) -> 6000 | AG25: =SUM(AG16-AG17-AG19+AG20+AG21+AG22+AG23+IF(Begroting!$D24="ja",AG24,0)) -> 6000 | AH25: =SUM(AH16-AH17-AH19+AH20+AH21+AH22+AH23+IF(Begroting!$D24="ja",AH24,0)) -> 6000 | AI25: =SUM(AI16-AI17-AI19+AI20+AI21+AI22+AI23+IF(Begroting!$D24="ja",AI24,0)) -> 6000 | AJ25: =SUM(AJ16-AJ17-AJ19+AJ20+AJ21+AJ22+AJ23+IF(Begroting!$D24="ja",AJ24,0)) -> 6000
B26: Rekenregel | D26: =D2*D25 -> 6000 | E26: =E2*E25 -> 6000 | F26: =F2*F25 -> 6000 | G26: 6000 | H26: 6000 | I26: 6000 | J26: 6000 | K26: 6000 | L26: 6000 | M26: 6000 | N26: 6000 | O26: 6000 | P26: 6000 | Q26: 6000 | R26: 6000 | S26: 6000 | T26: 6000 | U26: 6000 | V26: 6000 | W26: 6000 | X26: 0 | Y26: =Y2*Y25 -> 0 | Z26: 0 | AA26: 0 | AB26: 0 | AC26: 0 | AD26: 0 | AE26: 0 | AF26: 0 | AG26: 0 | AH26: 0 | AI26: 0 | AJ26: 0
B27: Check reserves | C27: =IF(Begroting!C9=120,IF(COUNTIF(D26:N26,"<"&0)>0,"Aanpassing vereist: de reserves zijn niet elk jaar positief.","Saldo reserves is elk jaar positief."), IF(Begroting!C9=180,IF(COUNTIF(D26:S26,"<"&0)>0,"Aanpassing vereist: de reserves zijn niet elk jaar positief.","Saldo reserves is elk jaar positief."), IF(Begroting!C9=240,IF(COUNTIF(D26:X26,"<"&0)>0,"Aanpassing vereist: de reserves zijn niet elk jaar positief.","Saldo reserves is elk jaar positief."), IF(Begroting!C9=360,IF(COUNTIF(D26:AH26,"<"&Begroting!D71)>0,"Aanpassing vereist: de reserves zijn niet elk jaar voldoende positief (minimumreserve = jaarlast van de lening).","Saldo reserves is elk jaar positief."))))) -> Saldo reserves is elk jaar positief.
B28: Check lening | C28: =IF( SUM(D17:G17) < Begroting!C8, "Het totaal van D17 tm G17 moet minimaal gelijk zijn aan de hoofdsom van de VvE lening.", " " ) -> Het totaal van D17 tm G17 moet minimaal gelijk zijn aan de hoofdsom van de VvE lening.
B30: Bijzonderheden/toelichting
